fUST/lending_fUST_20240507
["ID","MTS","AMOUNT","RATE_DAILY","PERIOD"]
[326538232,1715094674952,-503.31452,0.00016712,2]
[326538233,1715094675007,-500.0,0.00016712,2]
[326538234,1715094675019,-517.81333835,0.00016712,2]
[326538235,1715094675032,-500.0,0.00016712,2]
[326538236,1715094675043,-500.0,0.00016712,2]
[326538237,1715094675053,-201.43335348,0.00016712,2]
[326538238,1715094675127,-500.0,0.00016712,2]
[326538239,1715094675159,-500.0,0.00016712,2]
[326538240,1715094675170,-2749.29,0.00016712,2]
[326538241,1715094675205,-500.0,0.00016712,2]
[326538242,1715094675230,-500.0,0.00016712,2]
[326538243,1715094675249,-500.0,0.00016712,2]
[326538244,1715094675258,-1171.11,0.00016712,2]
[326538245,1715094675375,-500.0,0.00016712,2]
[326538246,1715094675421,-500.0,0.00016712,2]
[326538247,1715094675433,-501.94461411,0.00016712,2]
[326538248,1715094675448,-500.0,0.00016712,2]
[326538249,1715094675459,-500.0,0.00016712,2]
[326538250,1715094675472,-500.0,0.00016712,2]
[326538251,1715094675482,-500.0,0.00016712,2]
[326538252,1715094675497,-500.0,0.00016712,2]
[326538253,1715094675510,-500.0,0.00016712,2]
[326538254,1715094675534,-561.14,0.00016712,2]
[326538255,1715094675549,-500.0,0.00016712,2]
[326538256,1715094675564,-500.0,0.00016712,2]
[326538257,1715094675575,-500.0,0.00016712,2]
[326538258,1715094675639,-500.0,0.00016712,2]
[326538259,1715094675649,-511.52425961,0.00016712,2]
[326538260,1715094675659,-500.0,0.00016712,2]
[326538261,1715094675673,-513.36832474,0.00016712,2]
[326538262,1715094675689,-500.0,0.00016712,2]
[326538263,1715094675701,-812.78,0.00016712,2]
[326538264,1715094675724,-500.0,0.00016712,2]
[326538265,1715094675735,-291.74570589,0.00016712,2]
[326538266,1715094675745,-500.0,0.00016712,2]
[326538267,1715094675832,-500.0,0.00016712,2]
[326538268,1715094675887,-500.0,0.00016712,2]
[326538269,1715094675898,-500.0,0.00016712,2]
[326538270,1715094675908,-390.18134385,0.00016712,2]
[326538271,1715094675920,-527.95520973,0.00016712,2]
[326538272,1715094675932,-500.0,0.00016712,2]
[326538273,1715094675959,-847.15,0.00016712,2]
[326538274,1715094675984,-501.8568473,0.00016712,2]
[326538275,1715094675995,-500.0,0.00016712,2]
[326538276,1715094676007,-500.0,0.00016712,2]
[326538277,1715094676020,-500.0,0.00016712,2]
[326538278,1715094676032,-502.29771139,0.00016712,2]
[326538279,1715094676043,-935.71,0.00016712,2]
[326538280,1715094676053,-1052.4,0.00016712,2]
[326538281,1715094676064,-500.0,0.00016712,2]
[326538282,1715094676075,-500.0,0.00016712,2]
[326538283,1715094676093,-501.17418155,0.00016712,2]
[326538284,1715094676104,-500.0,0.00016712,2]
[326538285,1715094676121,-501.70339014,0.00016712,2]
[326538286,1715094676132,-500.0,0.00016712,2]
[326538287,1715094676162,-500.0,0.00016712,2]
[326538288,1715094676174,-500.0,0.00016712,2]
[326538289,1715094676183,-500.0,0.00016712,2]
[326538290,1715094676215,-500.0,0.00016712,2]
[326538291,1715094676226,-500.0,0.00016712,2]
[326538292,1715094676273,-500.0,0.00016712,2]
[326538293,1715094676297,-510.63632301,0.00016712,2]
[326538294,1715094676308,-712.08,0.00016712,2]
[326538295,1715094676321,-1083.75,0.00016712,2]
[326538296,1715094676332,-500.0,0.00016712,2]
[326538297,1715094676418,-501.12794737,0.00016712,2]
[326538298,1715094676429,-500.0,0.00016712,2]
[326538299,1715094676439,-530.03,0.00016712,2]
[326538300,1715094676449,-4713.95,0.00016712,2]
[326538301,1715094676468,-500.0,0.00016712,2]
[326538302,1715094676492,-6678.38,0.00016712,2]
[326538303,1715094676505,-500.0,0.00016712,2]
[326538304,1715094676525,-246.80304802,0.00016712,2]
[326538305,1715094676537,-500.0,0.00016712,2]
[326538306,1715094676555,-501.18679688,0.00016712,2]
[326538307,1715094676566,-500.0,0.00016712,2]
[326538308,1715094676597,-29240.58,0.00016712,2]
[326538309,1715094676625,-500.0,0.00016712,2]
[326538310,1715094676677,-500.0,0.00016712,2]
[326538311,1715094676709,-503.59126416,0.00016712,2]
[326538312,1715094676732,-500.0,0.00016712,2]
[326538313,1715094676745,-559.04,0.00016712,2]
[326538314,1715094676808,-532.71727823,0.00016712,2]
[326538315,1715094676836,-1266.38,0.00016712,2]
[326538316,1715094676886,-500.0,0.00016712,2]
[326538317,1715094676897,-500.0,0.00016712,2]
[326538318,1715094676912,-500.0,0.00016712,2]
[326538319,1715094676957,-2429.74,0.00016712,2]
[326538320,1715094676973,-500.0,0.00016712,2]
[326538321,1715094676986,-502.14761802,0.00016712,2]
[326538322,1715094677049,-291.91991201,0.00016712,2]
[326538323,1715094677059,-5504.59,0.00016712,2]
[326538324,1715094677070,-500.0,0.00016712,2]
[326538325,1715094677081,-500.0,0.00016712,2]
[326538326,1715094677091,-500.0,0.00016712,2]
[326538327,1715094677104,-500.0,0.00016712,2]
[326538328,1715094677147,-500.0,0.00016712,2]
[326538329,1715094677158,-718.13,0.00016712,2]
[326538330,1715094677178,-500.0,0.00016712,2]
[326538331,1715094677189,-500.0,0.00016712,2]
[326538332,1715094677203,-253.32451899,0.00016712,2]
[326538333,1715094677214,-2182.65,0.00016712,2]
[326538334,1715094677226,-500.0,0.00016712,2]
[326538335,1715094677236,-500.0,0.00016712,2]
[326538336,1715094677247,-1410.09,0.00016712,2]
[326538337,1715094677257,-500.0,0.00016712,2]
[326538338,1715094677271,-500.0,0.00016712,2]
[326538339,1715094677289,-500.0,0.00016712,2]
[326538340,1715094677303,-500.0,0.00016712,2]
[326538341,1715094677339,-501.83693781,0.00016712,2]
[326538342,1715094677360,-501.07254256,0.00016712,2]
[326538343,1715094677374,-500.0,0.00016712,2]
[326538344,1715094677389,-415.94591056,0.00016712,2]
[326538345,1715094677400,-500.0,0.00016712,2]
[326538346,1715094677428,-245.74763403,0.00016712,2]
[326538347,1715094677442,-454.76452741,0.00016712,2]
[326538348,1715094677465,-500.0,0.00016712,2]
[326538349,1715094677479,-1558.35,0.00016712,2]
[326538350,1715094677496,-1052.62,0.00016712,2]
[326538351,1715094677535,-500.0,0.00016712,2]
[326538352,1715094677599,-500.0,0.00016712,2]
[326538353,1715094677612,-500.0,0.00016712,2]
[326538354,1715094677623,-500.0,0.00016712,2]
[326538355,1715094677633,-470.37363555,0.00016712,2]
[326538356,1715094677653,-2178.42,0.00016712,2]
[326538357,1715094677671,-513.43,0.00016712,2]
[326538358,1715094677711,-500.0,0.00016712,2]
[326538359,1715094677721,-514.53991646,0.00016712,2]
[326538360,1715094677733,-500.0,0.00016712,2]
[326538361,1715094677748,-500.0,0.00016712,2]
[326538362,1715094677760,-511.74411787,0.00016712,2]
[326538363,1715094677771,-500.0,0.00016712,2]
[326538364,1715094677782,-500.77832962,0.00016712,2]
[326538365,1715094677792,-638.13,0.00016712,2]
[326538366,1715094677805,-4497.01,0.00016712,2]
[326538367,1715094677843,-501.12374621,0.00016712,2]
[326538368,1715094677874,-581.79,0.00016712,2]
[326538369,1715094677910,-500.0,0.00016712,2]
[326538370,1715094677968,-500.0,0.00016712,2]
[326538371,1715094677990,-1582.96,0.00016712,2]
[326538372,1715094678001,-500.0,0.00016712,2]
[326538373,1715094678027,-500.0,0.00016712,2]
[326538374,1715094678046,-500.0,0.00016712,2]
[326538375,1715094678057,-500.0,0.00016712,2]
[326538376,1715094678073,-8812.66,0.00016712,2]
[326538377,1715094678083,-394.33579508,0.00016712,2]
[326538378,1715094678094,-500.0,0.00016712,2]
[326538379,1715094678105,-500.0,0.00016712,2]
[326538380,1715094678137,-500.0,0.00016712,2]
[326538381,1715094678153,-500.0,0.00016712,2]
[326538382,1715094678166,-5962.38,0.00016712,2]
[326538383,1715094678178,-500.0,0.00016712,2]
[326538384,1715094678207,-500.0,0.00016712,2]
[326538385,1715094678217,-1139.79,0.00016712,2]
[326538386,1715094678230,-500.14036139,0.00016712,2]
[326538387,1715094678243,-5322.15,0.00016712,2]
[326538388,1715094678255,-500.0,0.00016712,2]
[326538389,1715094678268,-500.0,0.00016712,2]
[326538390,1715094678280,-500.0,0.00016712,2]
[326538391,1715094678297,-500.0,0.00016712,2]
[326538392,1715094678307,-500.0,0.00016712,2]
[326538393,1715094678326,-500.0,0.00016712,2]
[326538394,1715094678385,-511.91813073,0.00016712,2]
[326538395,1715094678423,-502.29503644,0.00016712,2]
[326538396,1715094678439,-282.46506677,0.00016712,2]
[326538397,1715094678483,-500.0,0.00016712,2]
[326538398,1715094678494,-501.20721887,0.00016712,2]
[326538399,1715094678555,-4920.63,0.00016712,2]
[326538400,1715094678565,-501.223399,0.00016712,2]
[326538401,1715094678577,-3748.2,0.00016712,2]
[326538402,1715094678599,-500.0,0.00016712,2]
[326538403,1715094678613,-500.0,0.00016712,2]
[326538404,1715094678632,-500.0,0.00016712,2]
[326538405,1715094678643,-582.88,0.00016712,2]
[326538406,1715094678653,-500.0,0.00016712,2]
[326538407,1715094678668,-500.0,0.00016712,2]
[326538408,1715094678680,-500.0,0.00016712,2]
[326538409,1715094678730,-500.0,0.00016712,2]
[326538410,1715094678741,-500.0,0.00016712,2]
[326538411,1715094678754,-500.0,0.00016712,2]
[326538412,1715094678774,-500.0,0.00016712,2]
[326538413,1715094678788,-4614.67,0.00016712,2]
[326538414,1715094678817,-500.0,0.00016712,2]
[326538415,1715094678827,-501.42953644,0.00016712,2]
[326538416,1715094678843,-500.0,0.00016712,2]
[326538417,1715094678892,-500.0,0.00016712,2]
[326538418,1715094678903,-500.0,0.00016712,2]
[326538419,1715094678913,-821.1,0.00016712,2]
[326538420,1715094678924,-500.0,0.00016712,2]
[326538421,1715094678937,-500.0,0.00016712,2]
[326538422,1715094678948,-764.02,0.00016712,2]
[326538423,1715094678959,-500.0,0.00016712,2]
[326538424,1715094678970,-500.0,0.00016712,2]
[326538425,1715094678982,-500.0,0.00016712,2]
[326538426,1715094678993,-9730.24,0.00016712,2]
[326538427,1715094679003,-500.0,0.00016712,2]
[326538428,1715094679018,-1719.01,0.00016712,2]
[326538429,1715094679035,-500.0,0.00016712,2]
[326538430,1715094679090,-500.0,0.00016712,2]
[326538431,1715094679102,-501.09818053,0.00016712,2]
[326538432,1715094679121,-503.93163518,0.00016712,2]
[326538433,1715094679147,-500.0,0.00016712,2]
[326538434,1715094679158,-223.91887166,0.00016712,2]
[326538435,1715094679169,-878.77,0.00016712,2]
[326538436,1715094679189,-501.91581545,0.00016712,2]
[326538437,1715094679202,-624.21,0.00016712,2]
[326538438,1715094679212,-3543.48,0.00016712,2]
[326538439,1715094679229,-501.40778053,0.00016712,2]
[326538440,1715094679300,-1883.36,0.00016712,2]
[326538441,1715094679312,-500.0,0.00016712,2]
[326538442,1715094679327,-500.0,0.00016712,2]
[326538443,1715094679338,-500.0,0.00016712,2]
[326538444,1715094679352,-500.0,0.00016712,2]
[326538445,1715094679369,-151.39603211,0.00016712,2]
[326538446,1715094679379,-3435.66,0.00016712,2]
[326538447,1715094679391,-154.25780173,0.00016712,2]
[326538448,1715094679412,-500.0,0.00016712,2]
[326538449,1715094679423,-500.0,0.00016712,2]
[326538450,1715094679461,-500.0,0.00016712,2]
[326538451,1715094679476,-500.0,0.00016712,2]
[326538452,1715094679488,-1200.53,0.00016712,2]
[326538453,1715094679568,-500.0,0.00016712,2]
[326538454,1715094679622,-150.0,0.00016841,2]
[326538455,1715094679633,-7946.92894707,0.0001688,2]
[326538456,1715094679646,-804.249544,0.00016894,2]
[326538457,1715094679656,-907.421335,0.00016894,2]
[326538458,1715094679670,-3860.71496093,0.000169,2]
[326538459,1715094679680,-578.30004498,0.00016986,2]
[326538460,1715094679691,-500.0,0.00016986,2]
[326538461,1715094679702,-500.0,0.00016986,2]
[326538462,1715094679744,-426.49843579,0.00016986,2]
[326538463,1715094679768,-508.81702909,0.00016986,2]
[326538464,1715094679779,-500.0,0.00016986,2]
[326538465,1715094679790,-500.0,0.00016986,2]
[326538466,1715094679808,-500.0,0.00016986,2]
[326538467,1715094679821,-500.0,0.00016986,2]
[326538468,1715094679831,-500.0,0.00016986,2]
[326538469,1715094679965,-500.0,0.00016986,2]
[326538470,1715094679977,-500.0,0.00016986,2]
[326538471,1715094679988,-500.0,0.00016986,2]
[326538472,1715094679999,-300.81980021,0.00016986,2]
[326538473,1715094680070,-337.20336021,0.00016986,2]
[326538474,1715094680080,-500.0,0.00016986,2]
[326538475,1715094680107,-501.27814059,0.00016986,2]
[326538476,1715094680171,-500.0,0.00016986,2]
[326538477,1715094680182,-500.0,0.00016986,2]
[326538478,1715094680194,-500.0,0.00016986,2]
[326538479,1715094680209,-500.0,0.00016986,2]
[326538480,1715094680244,-500.0,0.00016986,2]
[326538481,1715094680293,-517.98493735,0.00016986,2]
[326538482,1715094680305,-500.0,0.00016986,2]
[326538483,1715094680366,-1245.62,0.00016986,2]
[326538484,1715094680377,-500.0,0.00016986,2]
[326538485,1715094680397,-500.0,0.00016986,2]
[326538486,1715094680407,-500.0,0.00016986,2]
[326538487,1715094680419,-500.0,0.00016986,2]
[326538488,1715094680465,-500.0,0.00016986,2]
[326538489,1715094680523,-500.0,0.00016986,2]
[326538490,1715094680583,-500.0,0.00016986,2]
[326538491,1715094680602,-500.0,0.00016986,2]
[326538492,1715094680679,-614.55,0.00016986,2]
[326538493,1715094680697,-500.0,0.00016986,2]
[326538494,1715094680710,-500.0,0.00016986,2]
[326538495,1715094680721,-500.0,0.00016986,2]
[326538496,1715094680734,-541.2,0.00016986,2]
[326538497,1715094680744,-500.0,0.00016986,2]
[326538498,1715094680757,-500.0,0.00016986,2]
[326538499,1715094680770,-500.0,0.00016986,2]
[326538500,1715094680781,-500.0,0.00016986,2]
[326538501,1715094680834,-641.98,0.00016986,2]
[326538502,1715094680845,-871.15,0.00016986,2]
[326538503,1715094680891,-982.41,0.00016986,2]
[326538504,1715094680901,-500.0,0.00016986,2]
[326538505,1715094680912,-500.0,0.00016986,2]
[326538506,1715094680924,-500.0,0.00016986,2]
[326538507,1715094680934,-500.0,0.00016986,2]
[326538508,1715094680988,-426.74748712,0.00016986,2]
[326538509,1715094681002,-500.0,0.00016986,2]
[326538510,1715094681023,-500.0,0.00016986,2]
[326538511,1715094681042,-500.0,0.00016986,2]
[326538512,1715094681053,-501.02950373,0.00016986,2]
[326538513,1715094681098,-500.0,0.00016986,2]
[326538514,1715094681128,-500.0,0.00016986,2]
[326538515,1715094681143,-500.0,0.00016986,2]
[326538516,1715094681154,-500.0,0.00016986,2]
[326538517,1715094681164,-502.15356797,0.00016986,2]
[326538518,1715094681242,-500.0,0.00016986,2]
[326538519,1715094681287,-500.0,0.00016986,2]
[326538520,1715094681298,-500.0,0.00016986,2]
[326538521,1715094681325,-500.0,0.00016986,2]
[326538522,1715094681378,-500.0,0.00016986,2]
[326538523,1715094681391,-500.0,0.00016986,2]
[326538524,1715094681409,-500.0,0.00016986,2]
[326538525,1715094681419,-500.0,0.00016986,2]
[326538526,1715094681430,-500.0,0.00016986,2]
[326538527,1715094681440,-500.0,0.00016986,2]
[326538528,1715094681452,-500.0,0.00016986,2]
[326538529,1715094681463,-500.0,0.00016986,2]
[326538530,1715094681489,-500.0,0.00016986,2]
[326538531,1715094681513,-500.0,0.00016986,2]
[326538532,1715094681524,-977.75,0.00016986,2]
[326538533,1715094681536,-500.0,0.00016986,2]
[326538534,1715094681550,-1000.0,0.00016986,2]
[326538535,1715094681597,-500.0,0.00016986,2]
[326538536,1715094681608,-580.65962318,0.00016986,2]
[326538537,1715094681621,-294.5993744,0.00016986,2]
[326538538,1715094681631,-500.0,0.00016986,2]
[326538539,1715094681641,-500.0,0.00016986,2]
[326538540,1715094681656,-500.0,0.00016986,2]
[326538541,1715094681679,-500.0,0.00016986,2]
[326538542,1715094681690,-500.0,0.00016986,2]
[326538543,1715094681702,-500.0,0.00016986,2]
[326538544,1715094681741,-1209.32,0.00016986,2]
[326538545,1715094681752,-500.0,0.00016986,2]
[326538546,1715094681792,-500.0,0.00016986,2]
[326538547,1715094681803,-833.36,0.00016986,2]
[326538548,1715094681814,-500.0,0.00016986,2]
[326538549,1715094681827,-500.0,0.00016986,2]
[326538550,1715094681838,-500.0,0.00016986,2]
[326538551,1715094681855,-614.02,0.00016986,2]
[326538552,1715094681872,-500.0,0.00016986,2]
[326538553,1715094681915,-1588.24,0.00016986,2]
[326538554,1715094681967,-1747.1,0.00016986,2]
[326538555,1715094681978,-504.74427046,0.00016986,2]
[326538556,1715094681998,-500.0,0.00016986,2]
[326538557,1715094682032,-500.0,0.00016986,2]
[326538558,1715094682043,-500.0,0.00016986,2]
[326538559,1715094682053,-500.0,0.00016986,2]
[326538560,1715094682063,-632.73,0.00016986,2]
[326538561,1715094682075,-500.0,0.00016986,2]
[326538562,1715094682085,-500.0,0.00016986,2]
[326538563,1715094682097,-500.0,0.00016986,2]
[326538564,1715094682110,-500.0,0.00016986,2]
[326538565,1715094682137,-500.0,0.00016986,2]
[326538566,1715094682150,-500.0,0.00016986,2]
[326538567,1715094682190,-503.38822394,0.00016986,2]
[326538568,1715094682202,-500.0,0.00016986,2]
[326538569,1715094682243,-500.0,0.00016986,2]
[326538570,1715094682274,-500.0,0.00016986,2]
[326538571,1715094682289,-500.0,0.00016986,2]
[326538572,1715094682304,-500.0,0.00016986,2]
[326538573,1715094682315,-500.0,0.00016986,2]
[326538574,1715094682347,-500.0,0.00016986,2]
[326538575,1715094682368,-500.0,0.00016986,2]
[326538576,1715094682384,-500.0,0.00016986,2]
[326538577,1715094682395,-500.0,0.00016986,2]
[326538578,1715094682405,-500.0,0.00016986,2]
[326538579,1715094682415,-500.0,0.00016986,2]
[326538580,1715094682457,-340.07985339,0.00016986,2]
[326538581,1715094682471,-500.0,0.00016986,2]
[326538582,1715094682483,-500.0,0.00016986,2]
[326538583,1715094682497,-500.0,0.00016986,2]
[326538584,1715094682506,-500.0,0.00016986,2]
[326538585,1715094682520,-500.0,0.00016986,2]
[326538586,1715094682533,-500.0,0.00016986,2]
[326538587,1715094682546,-2749.29,0.00016986,2]
[326538588,1715094682560,-341.65766998,0.00016986,2]
[326538589,1715094682576,-500.0,0.00016986,2]
[326538590,1715094682590,-500.0,0.00016986,2]
[326538591,1715094682603,-1171.11,0.00016986,2]
[326538592,1715094682616,-500.0,0.00016986,2]
[326538593,1715094682684,-201.04184514,0.00016986,2]
[326538594,1715094682695,-500.0,0.00016986,2]
[326538595,1715094682707,-500.0,0.00016986,2]
[326538596,1715094682720,-590.2383154,0.00016986,2]
[326538597,1715094682730,-500.0,0.00016986,2]
[326538598,1715094682740,-500.0,0.00016986,2]
[326538599,1715094682750,-500.0,0.00016986,2]
[326538600,1715094682768,-500.0,0.00016986,2]
[326538601,1715094682779,-500.0,0.00016986,2]
[326538602,1715094682789,-500.0,0.00016986,2]
[326538603,1715094682800,-500.0,0.00016986,2]
[326538604,1715094682814,-500.0,0.00016986,2]
[326538605,1715094682824,-500.0,0.00016986,2]
[326538606,1715094682837,-812.78,0.00016986,2]
[326538607,1715094682850,-517.39845068,0.00016986,2]
[326538608,1715094682910,-561.14,0.00016986,2]
[326538609,1715094682928,-500.0,0.00016986,2]
[326538610,1715094682939,-500.0,0.00016986,2]
[326538611,1715094682953,-500.0,0.00016986,2]
[326538612,1715094682972,-500.0,0.00016986,2]
[326538613,1715094682982,-500.0,0.00016986,2]
[326538614,1715094683000,-847.15,0.00016986,2]
[326538615,1715094683011,-500.0,0.00016986,2]
[326538616,1715094683024,-500.0,0.00016986,2]
[326538617,1715094683048,-500.0,0.00016986,2]
[326538618,1715094683064,-935.71,0.00016986,2]
[326538619,1715094683079,-1052.4,0.00016986,2]
[326538620,1715094683091,-500.0,0.00016986,2]
[326538621,1715094683145,-500.0,0.00016986,2]
[326538622,1715094683155,-500.0,0.00016986,2]
[326538623,1715094683165,-500.0,0.00016986,2]
[326538624,1715094683176,-500.76395752,0.00016986,2]
[326538625,1715094683188,-500.0,0.00016986,2]
[326538626,1715094683209,-500.0,0.00016986,2]
[326538627,1715094683234,-500.0,0.00016986,2]
[326538628,1715094683249,-500.0,0.00016986,2]
[326538629,1715094683259,-500.0,0.00016986,2]
[326538630,1715094683312,-712.08,0.00016986,2]
[326538631,1715094683345,-1083.75,0.00016986,2]
[326538632,1715094683355,-500.0,0.00016986,2]
[326538633,1715094683368,-500.0,0.00016986,2]
[326538634,1715094683378,-530.03,0.00016986,2]
[326538635,1715094683389,-4713.95,0.00016986,2]
[326538636,1715094683399,-500.0,0.00016986,2]
[326538637,1715094683411,-6678.38,0.00016986,2]
[326538638,1715094683424,-500.0,0.00016986,2]
[326538639,1715094683440,-500.0,0.00016986,2]
[326538640,1715094683451,-500.0,0.00016986,2]
[326538641,1715094683503,-29240.58,0.00016986,2]
[326538642,1715094683517,-500.0,0.00016986,2]
[326538643,1715094683562,-620.56595632,0.00016986,2]
[326538644,1715094683574,-559.04,0.00016986,2]
[326538645,1715094683625,-1266.38,0.00016986,2]
[326538646,1715094683666,-500.0,0.00016986,2]
[326538647,1715094683701,-500.0,0.00016986,2]
[326538648,1715094683741,-500.0,0.00016986,2]
[326538649,1715094683764,-500.0,0.00016986,2]
[326538650,1715094683775,-2429.74,0.00016986,2]
[326538651,1715094683789,-500.0,0.00016986,2]
[326538652,1715094683799,-5504.59,0.00016986,2]
[326538653,1715094683814,-500.0,0.00016986,2]
[326538654,1715094683864,-500.0,0.00016986,2]
[326538655,1715094683892,-500.0,0.00016986,2]
[326538656,1715094683905,-500.0,0.00016986,2]
[326538657,1715094683916,-718.13,0.00016986,2]
[326538658,1715094683965,-500.0,0.00016986,2]
[326538659,1715094684038,-500.0,0.00016986,2]
[326538660,1715094684098,-2182.65,0.00016986,2]
[326538661,1715094684118,-500.0,0.00016986,2]
[326538662,1715094684165,-500.0,0.00016986,2]
[326538663,1715094684216,-1410.09,0.00016986,2]
[326538664,1715094684231,-500.0,0.00016986,2]
[326538665,1715094684243,-500.0,0.00016986,2]
[326538666,1715094684264,-500.0,0.00016986,2]
[326538667,1715094684275,-500.0,0.00016986,2]
[326538668,1715094684296,-500.0,0.00016986,2]
[326538669,1715094684311,-500.0,0.00016986,2]
[326538670,1715094684322,-500.0,0.00016986,2]
[326538671,1715094684332,-1052.62,0.00016986,2]
[326538672,1715094684377,-1558.35,0.00016986,2]
[326538673,1715094684426,-500.0,0.00016986,2]
[326538674,1715094684439,-500.0,0.00016986,2]
[326538675,1715094684463,-500.0,0.00016986,2]
[326538676,1715094684473,-500.0,0.00016986,2]
[326538677,1715094684491,-2178.42,0.00016986,2]
[326538678,1715094684514,-513.43,0.00016986,2]
[326538679,1715094684528,-500.0,0.00016986,2]
[326538680,1715094684541,-504.10452515,0.00016986,2]
[326538681,1715094684560,-500.0,0.00016986,2]
[326538682,1715094684571,-502.04451092,0.00016986,2]
[326538683,1715094684583,-638.13,0.00016986,2]
[326538684,1715094684597,-4497.01,0.00016986,2]
[326538685,1715094684627,-581.79,0.00016986,2]
[326538686,1715094684644,-500.0,0.00016986,2]
[326538687,1715094684655,-501.15596802,0.00016986,2]
[326538688,1715094684668,-1582.96,0.00016986,2]
[326538689,1715094684717,-500.0,0.00016986,2]
[326538690,1715094684728,-500.0,0.00016986,2]
[326538691,1715094684738,-500.0,0.00016986,2]
[326538692,1715094684750,-500.0,0.00016986,2]
[326538693,1715094684788,-8812.66,0.00016986,2]
[326538694,1715094684820,-500.0,0.00016986,2]
[326538695,1715094684833,-502.34352033,0.00016986,2]
[326538696,1715094684847,-501.81224524,0.00016986,2]
[326538697,1715094684858,-5962.38,0.00016986,2]
[326538698,1715094684870,-500.0,0.00016986,2]
[326538699,1715094684917,-500.0,0.00016986,2]
[326538700,1715094684955,-1139.79,0.00016986,2]
[326538701,1715094684966,-5322.15,0.00016986,2]
[326538702,1715094684976,-500.0,0.00016986,2]
[326538703,1715094684991,-500.0,0.00016986,2]
[326538704,1715094685001,-500.0,0.00016986,2]
[326538705,1715094685011,-500.0,0.00016986,2]
[326538706,1715094685072,-500.0,0.00016986,2]
[326538707,1715094685186,-500.0,0.00016986,2]
[326538708,1715094685197,-500.0,0.00016986,2]
[326538709,1715094685213,-4920.63,0.00016986,2]
[326538710,1715094685252,-3748.2,0.00016986,2]
[326538711,1715094685266,-500.0,0.00016986,2]
[326538712,1715094685300,-500.0,0.00016986,2]
[326538713,1715094685311,-500.0,0.00016986,2]
[326538714,1715094685321,-582.88,0.00016986,2]
[326538715,1715094685335,-504.27859687,0.00016986,2]
[326538716,1715094685346,-501.51161643,0.00016986,2]
[326538717,1715094685357,-500.0,0.00016986,2]
[326538718,1715094685376,-500.0,0.00016986,2]
[326538719,1715094685387,-500.0,0.00016986,2]
[326538720,1715094685398,-501.93356808,0.00016986,2]
[326538721,1715094685409,-4614.67,0.00016986,2]
[326538722,1715094685451,-500.0,0.00016986,2]
[326538723,1715094685462,-500.0,0.00016986,2]
[326538724,1715094685473,-500.0,0.00016986,2]
[326538725,1715094685483,-500.0,0.00016986,2]
[326538726,1715094685495,-500.0,0.00016986,2]
[326538727,1715094685510,-821.1,0.00016986,2]
[326538728,1715094685523,-500.0,0.00016986,2]
[326538729,1715094685564,-500.0,0.00016986,2]
[326538730,1715094685583,-764.02,0.00016986,2]
[326538731,1715094685594,-500.0,0.00016986,2]